[Event "Early-Titled-Tuesday-Blitz-March-12-2024"]
[Site "Chess.com"]
[Date "2024.03.12"]
[Round "4"]
[White "Mr_ruthless"]
[Black "Carlos-Godoy"]
[Result "1-0"]
[WhiteElo "2478"]
[BlackElo "2054"]
[TimeControl "180+1"]
[EndTime "8:40:59 PDT"]
[Termination "Mr_ruthless won by resignation"]

1. e4 {[%clk 0:03:00.9]} 1... e6 {[%clk 0:02:48.8]} 2. d3 {[%clk 0:02:56.4]}
2... d5 {[%clk 0:02:42.6]} 3. Nd2 {[%clk 0:02:56.6]} 3... c5 {[%clk 0:02:40.8]}
4. g3 {[%clk 0:02:56.7]} 4... Nc6 {[%clk 0:02:41.3]} 5. Bg2 {[%clk 0:02:57.2]}
5... Nf6 {[%clk 0:02:41]} 6. f4 {[%clk 0:02:56.3]} 6... Be7 {[%clk 0:02:40]} 7.
Ngf3 {[%clk 0:02:56.2]} 7... O-O {[%clk 0:02:40.6]} 8. O-O {[%clk 0:02:56.6]}
8... Nd4 {[%clk 0:02:36.5]} 9. c3 {[%clk 0:02:52.8]} 9... Nxf3+ {[%clk 0:02:36]}
10. Qxf3 {[%clk 0:02:53.7]} 10... dxe4 {[%clk 0:02:35.3]} 11. Nxe4 {[%clk
0:02:54.6]} 11... Rb8 {[%clk 0:02:29]} 12. Nxf6+ {[%clk 0:02:32]} 12... Bxf6
{[%clk 0:02:27.9]} 13. Be3 {[%clk 0:02:32.4]} 13... b6 {[%clk 0:02:25.4]} 14.
Rad1 {[%clk 0:02:32.9]} 14... Bb7 {[%clk 0:02:25.1]} 15. Qf2 {[%clk 0:02:33.1]}
15... Bxg2 {[%clk 0:02:24.5]} 16. Qxg2 {[%clk 0:02:34]} 16... Qd5 {[%clk
0:02:22]} 17. Qxd5 {[%clk 0:02:21.8]} 17... exd5 {[%clk 0:02:21.5]} 18. f5
{[%clk 0:02:21.8]} 18... Rfe8 {[%clk 0:02:18.7]} 19. Rfe1 {[%clk 0:02:21.5]}
19... d4 {[%clk 0:02:14.4]} 20. Bf4 {[%clk 0:02:20.1]} 20... Rbc8 {[%clk
0:02:13]} 21. c4 {[%clk 0:02:19.4]} 21... a6 {[%clk 0:02:02]} 22. a4 {[%clk
0:02:12.7]} 22... g5 {[%clk 0:01:53.5]} 23. fxg6 {[%clk 0:02:12.7]} 23... hxg6
{[%clk 0:01:54]} 24. Kf1 {[%clk 0:01:35.8]} 24... g5 {[%clk 0:01:53]} 25. Bd2
{[%clk 0:01:29.1]} 25... Kg7 {[%clk 0:01:44.5]} 26. g4 {[%clk 0:01:27.4]} 26...
Rb8 {[%clk 0:01:37.4]} 27. Rxe8 {[%clk 0:00:57.6]} 27... Rxe8 {[%clk 0:01:37.9]}
28. Re1 {[%clk 0:00:57.7]} 28... Rb8 {[%clk 0:01:38.5]} 29. Rc1 {[%clk
0:00:44.3]} 29... Be7 {[%clk 0:01:31.6]} 30. Kg2 {[%clk 0:00:43.8]} 30... b5
{[%clk 0:01:30.3]} 31. cxb5 {[%clk 0:00:43.8]} 31... axb5 {[%clk 0:01:30.5]} 32.
a5 {[%clk 0:00:44.4]} 32... Ra8 {[%clk 0:01:22.2]} 33. Kf3 {[%clk 0:00:44]}
33... Ra6 {[%clk 0:01:18.6]} 34. Re1 {[%clk 0:00:30.1]} 34... Kf8 {[%clk
0:01:16]} 35. Ke4 {[%clk 0:00:25.6]} 35... b4 {[%clk 0:01:15.2]} 36. Ra1 {[%clk
0:00:22.3]} 36... Ke8 {[%clk 0:00:55.7]} 37. Kd5 {[%clk 0:00:22.3]} 37... Kd7
{[%clk 0:00:55.7]} 38. h3 {[%clk 0:00:22.4]} 38... Kc7 {[%clk 0:00:50.6]} 39. b3
{[%clk 0:00:19.6]} 39... Kd7 {[%clk 0:00:45.9]} 40. Kc4 {[%clk 0:00:11.1]} 40...
Kc6 {[%clk 0:00:45]} 41. Re1 {[%clk 0:00:10.6]} 41... Bd8 {[%clk 0:00:43.9]} 42.
Re5 {[%clk 0:00:08]} 42... Rxa5 {[%clk 0:00:43.1]} 43. Bxg5 {[%clk 0:00:05.3]}
43... f6 {[%clk 0:00:41.2]} 44. Rd5 {[%clk 0:00:04.9]} 44... fxg5 {[%clk
0:00:36.5]} 45. Rxd8 {[%clk 0:00:05.4]} 45... Ra1 {[%clk 0:00:36.7]} 46. Rc8+
{[%clk 0:00:05.6]} 46... Kd6 {[%clk 0:00:34.7]} 47. Rg8 {[%clk 0:00:05]} 47...
Kc6 {[%clk 0:00:33]} 48. Rg6+ {[%clk 0:00:05.4]} 48... Kd7 {[%clk 0:00:31.4]}
49. Kxc5 {[%clk 0:00:06.3]} 49... Rd1 {[%clk 0:00:28.9]} 50. Kc4 {[%clk
0:00:06.3]} 50... Rc1+ {[%clk 0:00:27.8]} 51. Kxd4 {[%clk 0:00:06.9]} 51... Rc3
{[%clk 0:00:28.3]} 52. Rxg5 {[%clk 0:00:07.4]} 52... Rxb3 {[%clk 0:00:27.6]} 53.
Rb5 {[%clk 0:00:08.1]} 53... Ke7 {[%clk 0:00:26.8]} 54. h4 {[%clk 0:00:08.3]}
54... Rb1 {[%clk 0:00:26.2]} 55. h5 {[%clk 0:00:06.4]} 55... Rg1 {[%clk
0:00:23.1]} 56. g5 {[%clk 0:00:06.1]} 56... b3 {[%clk 0:00:21.5]} 57. Kc3 {[%clk
0:00:06]} 57... Rh1 {[%clk 0:00:18.7]} 58. h6 {[%clk 0:00:04.8]} 58... Kf7
{[%clk 0:00:18.2]} 59. Kxb3 {[%clk 0:00:04.8]} 59... Kg6 {[%clk 0:00:17]} 60.
Kc4 {[%clk 0:00:05.4]} 60... Rh4+ {[%clk 0:00:15.4]} 61. d4 {[%clk 0:00:05.4]}
61... Rh5 {[%clk 0:00:15.3]} 62. Re5 {[%clk 0:00:05.3]} 62... Rh1 {[%clk
0:00:14.4]} 63. d5 {[%clk 0:00:05.5]} 63... Rc1+ {[%clk 0:00:14.6]} 64. Kb5
{[%clk 0:00:06.1]} 64... Rb1+ {[%clk 0:00:14.3]} 65. Kc6 {[%clk 0:00:06.8]}
65... Re1 {[%clk 0:00:13.8]} 66. Rxe1 {[%clk 0:00:06.3]} 1-0

[Event "Early-Titled-Tuesday-Blitz-March-12-2024"]
[Site "Chess.com"]
[Date "2024.03.12"]
[Round "4"]
[White "DamianoLew95"]
[Black "MaxLeto"]
[Result "0-1"]
[WhiteElo "2742"]
[BlackElo "2499"]
[TimeControl "180+1"]
[EndTime "8:41:04 PDT"]
[Termination "MaxLeto won by checkmate"]

1. e4 {[%clk 0:03:00.9]} 1... c5 {[%clk 0:02:59.9]} 2. Nf3 {[%clk 0:03:01]} 2...
d6 {[%clk 0:03:00.2]} 3. Bb5+ {[%clk 0:03:01]} 3... Nd7 {[%clk 0:02:59.9]} 4.
O-O {[%clk 0:02:59.2]} 4... a6 {[%clk 0:02:59.7]} 5. Bxd7+ {[%clk 0:02:59.1]}
5... Bxd7 {[%clk 0:03:00.6]} 6. Re1 {[%clk 0:02:59.7]} 6... Nf6 {[%clk
0:02:59.6]} 7. c3 {[%clk 0:03:00.4]} 7... Bc6 {[%clk 0:02:54.1]} 8. d4 {[%clk
0:03:00.8]} 8... Bxe4 {[%clk 0:02:43.1]} 9. Bg5 {[%clk 0:03:00.9]} 9... d5
{[%clk 0:02:25.3]} 10. Nbd2 {[%clk 0:02:54.9]} 10... Bf5 {[%clk 0:02:20.2]} 11.
dxc5 {[%clk 0:02:46.8]} 11... e6 {[%clk 0:02:18.4]} 12. Nd4 {[%clk 0:02:46.9]}
12... Bg6 {[%clk 0:02:16.5]} 13. b4 {[%clk 0:02:39.8]} 13... Be7 {[%clk
0:02:14.4]} 14. a4 {[%clk 0:02:14.1]} 14... O-O {[%clk 0:02:13.9]} 15. a5 {[%clk
0:02:14.1]} 15... h6 {[%clk 0:02:08.2]} 16. Bh4 {[%clk 0:02:13.9]} 16... Rc8
{[%clk 0:01:48.6]} 17. Qf3 {[%clk 0:02:11.1]} 17... Re8 {[%clk 0:01:20.7]} 18.
h3 {[%clk 0:01:51.3]} 18... Ne4 {[%clk 0:01:08]} 19. Nxe4 {[%clk 0:01:29.1]}
19... Bxe4 {[%clk 0:01:01.5]} 20. Bxe7 {[%clk 0:01:26.9]} 20... Qxe7 {[%clk
0:00:57.1]} 21. Qg3 {[%clk 0:01:24.3]} 21... e5 {[%clk 0:00:54.8]} 22. Nb3
{[%clk 0:01:14.6]} 22... f5 {[%clk 0:00:50.8]} 23. f4 {[%clk 0:01:03.6]} 23...
Rc6 {[%clk 0:00:12.5]} 24. fxe5 {[%clk 0:01:00.6]} 24... Kh7 {[%clk 0:00:13]}
25. Re2 {[%clk 0:00:54.4]} 25... Rg6 {[%clk 0:00:13.2]} 26. Qf4 {[%clk
0:00:54.7]} 26... Qxe5 {[%clk 0:00:03.4]} 27. Qxe5 {[%clk 0:00:55]} 27... Rxe5
{[%clk 0:00:04.2]} 28. Nd4 {[%clk 0:00:54.9]} 28... Rg3 {[%clk 0:00:04.5]} 29.
Rc1 {[%clk 0:00:48.7]} 29... f4 {[%clk 0:00:04.3]} 30. Kh2 {[%clk 0:00:44.2]}
30... Reg5 {[%clk 0:00:04.3]} 31. Rg1 {[%clk 0:00:32]} 31... Rxc3 {[%clk
0:00:04.2]} 32. Rf2 {[%clk 0:00:23.8]} 32... Rcg3 {[%clk 0:00:03.6]} 33. Ne6
{[%clk 0:00:21.3]} 33... Rf5 {[%clk 0:00:02]} 34. Rxf4 {[%clk 0:00:17.8]} 34...
Rxf4 {[%clk 0:00:02.2]} 35. Nxf4 {[%clk 0:00:18.7]} 35... Rb3 {[%clk 0:00:02.4]}
36. Rd1 {[%clk 0:00:17.6]} 36... Rxb4 {[%clk 0:00:02.1]} 37. Nxd5 {[%clk
0:00:16.6]} 37... Rb2 {[%clk 0:00:02.8]} 38. Ne3 {[%clk 0:00:15.6]} 38... Re2
{[%clk 0:00:03]} 39. Kg3 {[%clk 0:00:09.5]} 39... Rxe3+ {[%clk 0:00:03.2]} 40.
Kf4 {[%clk 0:00:10.2]} 40... Re2 {[%clk 0:00:03.7]} 41. Rd7 {[%clk 0:00:10.7]}
41... Bc6 {[%clk 0:00:03.7]} 42. Rf7 {[%clk 0:00:10.5]} 42... Rxg2 {[%clk
0:00:04.1]} 43. Ke5 {[%clk 0:00:10.9]} 43... Re2+ {[%clk 0:00:04.2]} 44. Kd6
{[%clk 0:00:11.1]} 44... Rd2+ {[%clk 0:00:04.6]} 45. Kc7 {[%clk 0:00:11.2]}
45... Rb2 {[%clk 0:00:04.8]} 46. h4 {[%clk 0:00:11.2]} 46... Rb5 {[%clk
0:00:05]} 47. h5 {[%clk 0:00:11.8]} 47... Rxc5 {[%clk 0:00:05.4]} 48. Kb6 {[%clk
0:00:12.3]} 48... Rb5+ {[%clk 0:00:05.9]} 49. Ka7 {[%clk 0:00:12.9]} 49... Rxa5
{[%clk 0:00:06.8]} 50. Kb6 {[%clk 0:00:12.5]} 50... Rxh5 {[%clk 0:00:07.4]} 51.
Ka7 {[%clk 0:00:13.1]} 51... Rb5 {[%clk 0:00:08.3]} 52. Kb8 {[%clk 0:00:13.2]}
52... a5 {[%clk 0:00:08.5]} 53. Kc7 {[%clk 0:00:14]} 53... a4 {[%clk 0:00:08.9]}
54. Kd8 {[%clk 0:00:13.3]} 54... Ra5 {[%clk 0:00:09.1]} 55. Ke7 {[%clk
0:00:14.2]} 55... a3 {[%clk 0:00:09.4]} 56. Rf1 {[%clk 0:00:13.2]} 56... a2
{[%clk 0:00:09.8]} 57. Ra1 {[%clk 0:00:14.1]} 57... Bd5 {[%clk 0:00:10.2]} 58.
Kf8 {[%clk 0:00:14]} 58... Bg8 {[%clk 0:00:10.4]} 59. Ke7 {[%clk 0:00:13.9]}
59... Rb5 {[%clk 0:00:10.4]} 60. Rg1 {[%clk 0:00:10.1]} 60... Rb1 {[%clk
0:00:10.3]} 61. Re1 {[%clk 0:00:06.4]} 61... Rxe1+ {[%clk 0:00:09.8]} 62. Kf8
{[%clk 0:00:07.3]} 62... Rf1+ {[%clk 0:00:10.1]} 63. Ke7 {[%clk 0:00:07.3]}
63... a1=Q {[%clk 0:00:10.4]} 64. Kd7 {[%clk 0:00:07.9]} 64... Qd4+ {[%clk
0:00:10.1]} 65. Kc7 {[%clk 0:00:08.5]} 65... b5 {[%clk 0:00:09.5]} 66. Kb7
{[%clk 0:00:08.9]} 66... b4 {[%clk 0:00:09.9]} 67. Ka6 {[%clk 0:00:09.5]} 67...
b3 {[%clk 0:00:10.4]} 68. Kb5 {[%clk 0:00:10.2]} 68... b2 {[%clk 0:00:10.9]} 69.
Ka5 {[%clk 0:00:11]} 69... g5 {[%clk 0:00:10.3]} 70. Kb5 {[%clk 0:00:11.9]}
70... g4 {[%clk 0:00:11.1]} 71. Ka5 {[%clk 0:00:12.8]} 71... g3 {[%clk
0:00:11.7]} 72. Kb5 {[%clk 0:00:13.7]} 72... g2 {[%clk 0:00:12.6]} 73. Ka5
{[%clk 0:00:14.6]} 73... h5 {[%clk 0:00:13.5]} 74. Kb5 {[%clk 0:00:15.5]} 74...
h4 {[%clk 0:00:14.4]} 75. Ka5 {[%clk 0:00:16.4]} 75... h3 {[%clk 0:00:15.3]} 76.
Kb5 {[%clk 0:00:17.3]} 76... h2 {[%clk 0:00:16.2]} 77. Ka5 {[%clk 0:00:18.2]}
77... h1=Q {[%clk 0:00:15.9]} 78. Kb5 {[%clk 0:00:19.1]} 78... g1=Q {[%clk
0:00:15.1]} 79. Ka5 {[%clk 0:00:20]} 79... Qc5+ {[%clk 0:00:14.7]} 80. Ka4
{[%clk 0:00:20.2]} 80... Qc4+ {[%clk 0:00:14.7]} 81. Ka5 {[%clk 0:00:21.1]}
81... Qgc5# {[%clk 0:00:14.8]} 0-1

[Event "Early-Titled-Tuesday-Blitz-March-12-2024"]
[Site "Chess.com"]
[Date "2024.03.12"]
[Round "4"]
[White "el008"]
[Black "remyrushbrooke"]
[Result "0-1"]
[WhiteElo "2511"]
[BlackElo "2275"]
[TimeControl "180+1"]
[EndTime "8:41:07 PDT"]
[Termination "remyrushbrooke won by checkmate"]

1. Nf3 {[%clk 0:03:00.9]} 1... f5 {[%clk 0:02:54.7]} 2. b3 {[%clk 0:02:56.4]}
2... Nf6 {[%clk 0:02:55]} 3. Bb2 {[%clk 0:02:57.3]} 3... d6 {[%clk 0:02:54]} 4.
c4 {[%clk 0:02:56.2]} 4... e5 {[%clk 0:02:53.2]} 5. d4 {[%clk 0:02:54.3]} 5...
e4 {[%clk 0:02:53.1]} 6. Ng1 {[%clk 0:02:54.7]} 6... Be7 {[%clk 0:02:53.2]} 7.
e3 {[%clk 0:02:54.6]} 7... O-O {[%clk 0:02:53.4]} 8. g3 {[%clk 0:02:51.5]} 8...
d5 {[%clk 0:02:53.1]} 9. cxd5 {[%clk 0:02:51.3]} 9... Nxd5 {[%clk 0:02:52.1]}
10. Nc3 {[%clk 0:02:51.8]} 10... c6 {[%clk 0:02:52.5]} 11. Nge2 {[%clk
0:02:51.4]} 11... Be6 {[%clk 0:02:49.4]} 12. Nf4 {[%clk 0:02:51.6]} 12... Bf7
{[%clk 0:02:49.7]} 13. h4 {[%clk 0:02:50.2]} 13... Nd7 {[%clk 0:02:47.6]} 14.
Nfxd5 {[%clk 0:02:47.6]} 14... cxd5 {[%clk 0:02:46.3]} 15. Qd2 {[%clk
0:02:44.4]} 15... Nf6 {[%clk 0:02:45.6]} 16. Be2 {[%clk 0:02:44.2]} 16... h6
{[%clk 0:02:43]} 17. O-O-O {[%clk 0:02:40.4]} 17... Bh5 {[%clk 0:02:40.4]} 18.
Kb1 {[%clk 0:02:31.6]} 18... Bxe2 {[%clk 0:02:39.7]} 19. Nxe2 {[%clk 0:02:32.5]}
19... a5 {[%clk 0:02:35.3]} 20. Nf4 {[%clk 0:02:30.3]} 20... Qd7 {[%clk
0:02:32]} 21. Ng6 {[%clk 0:02:29.2]} 21... Rfb8 {[%clk 0:02:25.9]} 22. a3 {[%clk
0:02:02.6]} 22... Bd6 {[%clk 0:02:09.1]} 23. Rc1 {[%clk 0:02:02.4]} 23... Kh7
{[%clk 0:01:56.5]} 24. Ne5 {[%clk 0:02:02.2]} 24... Qe7 {[%clk 0:01:55.6]} 25.
Ka2 {[%clk 0:01:57.3]} 25... Nd7 {[%clk 0:01:53.8]} 26. Nxd7 {[%clk 0:01:54.4]}
26... Qxd7 {[%clk 0:01:54.7]} 27. h5 {[%clk 0:01:50.4]} 27... b5 {[%clk
0:01:49.1]} 28. Rc5 {[%clk 0:01:46.3]} 28... Bxc5 {[%clk 0:01:19.6]} 29. dxc5
{[%clk 0:01:47.2]} 29... Rc8 {[%clk 0:01:18.3]} 30. Qd4 {[%clk 0:01:47.3]} 30...
Rc6 {[%clk 0:01:14.3]} 31. Rd1 {[%clk 0:01:44.2]} 31... Rac8 {[%clk 0:01:03.4]}
32. b4 {[%clk 0:01:44.3]} 32... axb4 {[%clk 0:01:03.6]} 33. axb4 {[%clk
0:01:45.2]} 33... Ra8+ {[%clk 0:00:59.1]} 34. Kb1 {[%clk 0:01:44.5]} 34... Rd8
{[%clk 0:00:50]} 35. Qe5 {[%clk 0:01:43.2]} 35... Qf7 {[%clk 0:00:36.5]} 36. Kc2
{[%clk 0:01:41.6]} 36... Re6 {[%clk 0:00:34.2]} 37. Qd4 {[%clk 0:01:38.4]} 37...
Rd7 {[%clk 0:00:28.4]} 38. Rh1 {[%clk 0:01:36.1]} 38... Ra6 {[%clk 0:00:20.5]}
39. Kd2 {[%clk 0:01:36.6]} 39... Ra2 {[%clk 0:00:20.2]} 40. c6 {[%clk
0:01:34.5]} 40... Rda7 {[%clk 0:00:19]} 41. Rc1 {[%clk 0:01:31.2]} 41... Rc7
{[%clk 0:00:10.4]} 42. Rc2 {[%clk 0:01:28.1]} 42... Ra6 {[%clk 0:00:10.5]} 43.
Rc5 {[%clk 0:01:05]} 43... Qe6 {[%clk 0:00:10.1]} 44. Rxb5 {[%clk 0:00:34.4]}
44... Raxc6 {[%clk 0:00:08.5]} 45. Rc5 {[%clk 0:00:34.9]} 45... Rxc5 {[%clk
0:00:07.6]} 46. bxc5 {[%clk 0:00:35.8]} 46... Qc6 {[%clk 0:00:07.5]} 47. Qe5
{[%clk 0:00:35.9]} 47... Qxc5 {[%clk 0:00:04.4]} 48. Qxf5+ {[%clk 0:00:36.4]}
48... Kg8 {[%clk 0:00:04.4]} 49. Qe6+ {[%clk 0:00:28.6]} 49... Kh7 {[%clk
0:00:04.7]} 50. Qg6+ {[%clk 0:00:13.6]} 50... Kg8 {[%clk 0:00:04.3]} 51. Qe8+
{[%clk 0:00:13.3]} 51... Qf8 {[%clk 0:00:04.8]} 52. Qe5 {[%clk 0:00:08.8]} 52...
Qf7 {[%clk 0:00:04.7]} 53. Bd4 {[%clk 0:00:07.4]} 53... Re7 {[%clk 0:00:04.8]}
54. Qb8+ {[%clk 0:00:07.4]} 54... Kh7 {[%clk 0:00:05.2]} 55. Qd8 {[%clk
0:00:05.6]} 55... Qxf2+ {[%clk 0:00:05.4]} 56. Kc3 {[%clk 0:00:05.4]} 56... Qf7
{[%clk 0:00:06.3]} 57. Qd6 {[%clk 0:00:05.5]} 57... Rc7+ {[%clk 0:00:06.4]} 58.
Kb4 {[%clk 0:00:04.2]} 58... Rd7 {[%clk 0:00:07]} 59. Qe5 {[%clk 0:00:04.3]}
59... Rb7+ {[%clk 0:00:07.6]} 60. Kc5 {[%clk 0:00:03.8]} 60... Qe7+ {[%clk
0:00:07.9]} 61. Qxe7 {[%clk 0:00:04.1]} 61... Rxe7 {[%clk 0:00:08.6]} 62. Kxd5
{[%clk 0:00:05]} 62... g6 {[%clk 0:00:09.3]} 63. Kd6 {[%clk 0:00:04.8]} 63...
Re8 {[%clk 0:00:09.7]} 64. Kd7 {[%clk 0:00:05.2]} 64... Rf8 {[%clk 0:00:09]} 65.
Ke7 {[%clk 0:00:04.6]} 65... Rf3 {[%clk 0:00:08.5]} 66. hxg6+ {[%clk 0:00:03.6]}
66... Kxg6 {[%clk 0:00:09.4]} 67. Ke6 {[%clk 0:00:04.4]} 67... Rxg3 {[%clk
0:00:09.7]} 68. Ke5 {[%clk 0:00:05]} 68... h5 {[%clk 0:00:10.5]} 69. Kxe4 {[%clk
0:00:05.5]} 69... h4 {[%clk 0:00:11]} 70. Kf4 {[%clk 0:00:06.1]} 70... Rg2
{[%clk 0:00:11.2]} 71. e4 {[%clk 0:00:05.2]} 71... h3 {[%clk 0:00:11.1]} 72. Kf3
{[%clk 0:00:05.7]} 72... Rg5 {[%clk 0:00:11.1]} 73. Be5 {[%clk 0:00:01.8]} 73...
Rxe5 {[%clk 0:00:11.1]} 74. Kg3 {[%clk 0:00:02.4]} 74... Rxe4 {[%clk 0:00:11.2]}
75. Kxh3 {[%clk 0:00:03]} 75... Kg5 {[%clk 0:00:10.3]} 76. Kg3 {[%clk
0:00:03.7]} 76... Re3+ {[%clk 0:00:10.7]} 77. Kf2 {[%clk 0:00:04.6]} 77... Ra3
{[%clk 0:00:10.8]} 78. Kg2 {[%clk 0:00:05.5]} 78... Kf4 {[%clk 0:00:11]} 79. Kf2
{[%clk 0:00:06.4]} 79... Ra2+ {[%clk 0:00:11.1]} 80. Kf1 {[%clk 0:00:06.8]}
80... Ke3 {[%clk 0:00:11.4]} 81. Kg1 {[%clk 0:00:07.2]} 81... Kf3 {[%clk
0:00:11.7]} 82. Kh1 {[%clk 0:00:08.1]} 82... Kg3 {[%clk 0:00:11.9]} 83. Kg1
{[%clk 0:00:08.8]} 83... Ra1# {[%clk 0:00:12.4]} 0-1

[Event "Early-Titled-Tuesday-Blitz-March-12-2024"]
[Site "Chess.com"]
[Date "2024.03.12"]
[Round "4"]
[White "shimastream"]
[Black "Hikaru"]
[Result "0-1"]
[WhiteElo "2956"]
[BlackElo "3221"]
[TimeControl "180+1"]
[EndTime "8:41:14 PDT"]
[Termination "Hikaru won on time"]

1. e4 {[%clk 0:03:00.9]} 1... e6 {[%clk 0:02:57.2]} 2. d4 {[%clk 0:02:59]} 2...
d5 {[%clk 0:02:57.6]} 3. Nc3 {[%clk 0:02:52.4]} 3... Nf6 {[%clk 0:02:56.3]} 4.
e5 {[%clk 0:02:49.1]} 4... Nfd7 {[%clk 0:02:56.5]} 5. f4 {[%clk 0:02:49.6]} 5...
c5 {[%clk 0:02:56.9]} 6. Nf3 {[%clk 0:02:50.2]} 6... Nc6 {[%clk 0:02:55.8]} 7.
Be3 {[%clk 0:02:50.3]} 7... Rb8 {[%clk 0:02:56.2]} 8. a3 {[%clk 0:02:44.2]} 8...
a6 {[%clk 0:02:55.4]} 9. Qd2 {[%clk 0:02:42.6]} 9... b5 {[%clk 0:02:55.6]} 10.
Bd3 {[%clk 0:02:27.6]} 10... b4 {[%clk 0:02:42.9]} 11. axb4 {[%clk 0:02:24.9]}
11... c4 {[%clk 0:02:39.3]} 12. Be2 {[%clk 0:02:23.4]} 12... Bxb4 {[%clk
0:02:38.7]} 13. O-O {[%clk 0:02:21.5]} 13... f5 {[%clk 0:02:38.7]} 14. Qc1
{[%clk 0:01:56.3]} 14... O-O {[%clk 0:02:27.1]} 15. Nd1 {[%clk 0:01:55.4]} 15...
Be7 {[%clk 0:02:25.1]} 16. Nf2 {[%clk 0:01:47]} 16... Qb6 {[%clk 0:02:20.3]} 17.
Ra2 {[%clk 0:01:46.2]} 17... a5 {[%clk 0:02:20.5]} 18. c3 {[%clk 0:01:45.2]}
18... Ba6 {[%clk 0:02:16.4]} 19. Qd2 {[%clk 0:01:39.8]} 19... Bb5 {[%clk
0:02:15.9]} 20. Rfa1 {[%clk 0:01:38.8]} 20... a4 {[%clk 0:02:14.3]} 21. Bd1
{[%clk 0:01:38.4]} 21... Na5 {[%clk 0:02:14.6]} 22. Qe1 {[%clk 0:01:20.1]} 22...
Nb3 {[%clk 0:02:14.7]} 23. Rb1 {[%clk 0:01:20.5]} 23... Qd8 {[%clk 0:01:57.5]}
24. Bc2 {[%clk 0:01:19.1]} 24... Nb6 {[%clk 0:01:57]} 25. h3 {[%clk 0:01:14.2]}
25... Be8 {[%clk 0:01:56]} 26. Kh2 {[%clk 0:01:06.1]} 26... Bh5 {[%clk
0:01:52.5]} 27. Qe2 {[%clk 0:01:03.7]} 27... Qe8 {[%clk 0:01:51.4]} 28. Rg1
{[%clk 0:01:02.7]} 28... a3 {[%clk 0:01:51.6]} 29. bxa3 {[%clk 0:01:02.3]} 29...
Na4 {[%clk 0:01:51.8]} 30. Nd1 {[%clk 0:01:02.3]} 30... Bd8 {[%clk 0:01:46.4]}
31. Bf2 {[%clk 0:00:44.6]} 31... Nc1 {[%clk 0:01:35.3]} 32. Bxa4 {[%clk
0:00:37.7]} 32... Qxa4 {[%clk 0:01:36.2]} 33. Qc2 {[%clk 0:00:37.9]} 33... Qxc2
{[%clk 0:01:35.9]} 34. Rxc2 {[%clk 0:00:37.8]} 34... Nd3 {[%clk 0:01:36.8]} 35.
Be3 {[%clk 0:00:35.3]} 35... Bxf3 {[%clk 0:01:36.8]} 36. gxf3 {[%clk 0:00:36.2]}
36... Be7 {[%clk 0:01:32.9]} 37. Nf2 {[%clk 0:00:32]} 37... Nxf2 {[%clk
0:01:30.4]} 38. Bxf2 {[%clk 0:00:32.9]} 38... Bxa3 {[%clk 0:01:29.7]} 39. Ra1
{[%clk 0:00:28.1]} 39... Rb3 {[%clk 0:01:29.1]} 40. Be1 {[%clk 0:00:27.4]} 40...
Rfb8 {[%clk 0:01:26.5]} 41. Kg2 {[%clk 0:00:25.1]} 41... Kf7 {[%clk 0:01:20.3]}
42. Kf1 {[%clk 0:00:24]} 42... Kg6 {[%clk 0:01:19.6]} 43. Ke2 {[%clk 0:00:23.9]}
43... Kh5 {[%clk 0:01:14.1]} 44. Raa2 {[%clk 0:00:22.4]} 44... h6 {[%clk
0:01:11.1]} 45. Ra1 {[%clk 0:00:21.8]} 45... g5 {[%clk 0:01:11.4]} 46. fxg5
{[%clk 0:00:21.9]} 46... hxg5 {[%clk 0:01:12.3]} 47. Raa2 {[%clk 0:00:22]} 47...
f4 {[%clk 0:01:10.4]} 48. Ra1 {[%clk 0:00:20]} 48... Kg6 {[%clk 0:01:10.9]} 49.
Kf1 {[%clk 0:00:19.4]} 49... Kf5 {[%clk 0:01:11]} 50. Raa2 {[%clk 0:00:19.5]}
50... R8b7 {[%clk 0:01:01.6]} 51. Kg2 {[%clk 0:00:18.5]} 51... Kg6 {[%clk
0:00:58.2]} 52. Bd2 {[%clk 0:00:18.6]} 52... Kf5 {[%clk 0:00:56.4]} 53. Kf2
{[%clk 0:00:19]} 53... R7b6 {[%clk 0:00:55.9]} 54. Kg2 {[%clk 0:00:19.5]} 54...
Rb7 {[%clk 0:00:55.4]} 55. Kf2 {[%clk 0:00:20]} 55... Be7 {[%clk 0:00:56.1]} 56.
Kg2 {[%clk 0:00:17.1]} 56... Rb1 {[%clk 0:00:56.6]} 57. Rc1 {[%clk 0:00:16]}
57... R7b2 {[%clk 0:00:50.3]} 58. Rc2 {[%clk 0:00:15.1]} 58... Rxc2 {[%clk
0:00:50.5]} 59. Rxc2 {[%clk 0:00:15.5]} 59... Ba3 {[%clk 0:00:51.3]} 60. Kf2
{[%clk 0:00:12.3]} 60... Bb2 {[%clk 0:00:48.8]} 61. Be1 {[%clk 0:00:07.7]} 61...
Bc1 {[%clk 0:00:47.7]} 62. Ke2 {[%clk 0:00:07.4]} 62... Be3 {[%clk 0:00:46.6]}
63. Ra2 {[%clk 0:00:07.6]} 63... Rc1 {[%clk 0:00:41]} 64. Ra7 {[%clk 0:00:06.7]}
64... Rc2+ {[%clk 0:00:40.1]} 65. Kf1 {[%clk 0:00:07.1]} 65... Rh2 {[%clk
0:00:34.4]} 66. Rf7+ {[%clk 0:00:06.9]} 66... Kg6 {[%clk 0:00:35]} 67. Rf6+
{[%clk 0:00:07.5]} 67... Kh5 {[%clk 0:00:35.4]} 68. Rxe6 {[%clk 0:00:07.9]}
68... Rh1+ {[%clk 0:00:36]} 69. Ke2 {[%clk 0:00:08]} 69... Rxh3 {[%clk
0:00:35.5]} 70. Re8 {[%clk 0:00:07.1]} 70... Kg6 {[%clk 0:00:34.6]} 71. Rf8
{[%clk 0:00:06.4]} 71... Rh2+ {[%clk 0:00:34.1]} 72. Kd1 {[%clk 0:00:06]} 72...
Ra2 {[%clk 0:00:33]} 73. Rf6+ {[%clk 0:00:05.1]} 73... Kh5 {[%clk 0:00:32.9]}
74. e6 {[%clk 0:00:04.4]} 74... Ra7 {[%clk 0:00:33]} 75. Rf7 {[%clk 0:00:04.5]}
75... Ra6 {[%clk 0:00:32.7]} 76. e7 {[%clk 0:00:03.9]} 76... Re6 {[%clk
0:00:32.8]} 77. Rg7 {[%clk 0:00:02.5]} 77... Kh6 {[%clk 0:00:32.7]} 78. Rg8
{[%clk 0:00:02.8]} 78... Rxe7 {[%clk 0:00:32.9]} 79. Rd8 {[%clk 0:00:03.5]}
79... g4 {[%clk 0:00:23.2]} 80. fxg4 {[%clk 0:00:03.4]} 80... f3 {[%clk
0:00:22.2]} 81. Rf8 {[%clk 0:00:03.1]} 81... Kg5 {[%clk 0:00:21.1]} 82. Rxf3
{[%clk 0:00:03.4]} 82... Kxg4 {[%clk 0:00:21.4]} 83. Rf8 {[%clk 0:00:03.1]}
83... Ra7 {[%clk 0:00:22.1]} 84. Ke2 {[%clk 0:00:02.3]} 84... Bg5 {[%clk
0:00:21.8]} 0-1